[Event "Live Chess"]
[Site "Chess.com"]
[Date "2024.06.02"]
[Round "-"]
[White "PureDashingOctopus"]
[Black "nitrofish07"]
[Result "0-1"]
[WhiteElo "2277"]
[BlackElo "2093"]
[TimeControl "300"]
[EndTime "7:24:12 PDT"]
[Termination "nitrofish07 won by checkmate"]

1. e4 {[%clk 0:04:58.4]} 1... c5 {[%clk 0:04:59.1]} 2. Nc3 {[%clk 0:04:57.4]}
2... a6 {[%clk 0:04:57.8]} 3. Nge2 {[%clk 0:04:56.2]} 3... d6 {[%clk 0:04:56]}
4. d4 {[%clk 0:04:55.6]} 4... cxd4 {[%clk 0:04:55.9]} 5. Nxd4 {[%clk 0:04:55.4]}
5... Nf6 {[%clk 0:04:55.1]} 6. f3 {[%clk 0:04:51.4]} 6... e5 {[%clk 0:04:51]} 7.
Nb3 {[%clk 0:04:50.1]} 7... Be7 {[%clk 0:04:50.5]} 8. Be3 {[%clk 0:04:48.5]}
8... Be6 {[%clk 0:04:49.5]} 9. Qd2 {[%clk 0:04:47.6]} 9... h5 {[%clk 0:04:48.5]}
10. O-O-O {[%clk 0:04:46.2]} 10... Nbd7 {[%clk 0:04:47.8]} 11. Nd5 {[%clk
0:04:40.5]} 11... Nxd5 {[%clk 0:04:44.3]} 12. exd5 {[%clk 0:04:39.7]} 12... Bf5
{[%clk 0:04:44.2]} 13. Be2 {[%clk 0:04:37.8]} 13... Rc8 {[%clk 0:04:43.1]} 14.
h4 {[%clk 0:04:33.6]} 14... Bxh4 {[%clk 0:04:36]} 15. Bd3 {[%clk 0:04:26.6]}
15... Bxd3 {[%clk 0:04:27.6]} 16. Qxd3 {[%clk 0:04:26.5]} 16... Bg5 {[%clk
0:04:27.1]} 17. g4 {[%clk 0:04:17.4]} 17... h4 {[%clk 0:04:20.6]} 18. Kb1 {[%clk
0:04:01.3]} 18... Nc5 {[%clk 0:04:16]} 19. Nxc5 {[%clk 0:03:56.7]} 19... Rxc5
{[%clk 0:04:15.9]} 20. Bxc5 {[%clk 0:03:54.8]} 20... dxc5 {[%clk 0:04:04.5]} 21.
Qf5 {[%clk 0:03:53]} 21... Qf6 {[%clk 0:03:52.9]} 22. Qc8+ {[%clk 0:03:51.1]}
22... Qd8 {[%clk 0:03:52.2]} 23. Qxb7 {[%clk 0:03:46.7]} 23... O-O {[%clk
0:03:51.6]} 24. Qxa6 {[%clk 0:03:42.9]} 24... Qb8 {[%clk 0:03:47.3]} 25. d6
{[%clk 0:03:38.9]} 25... Rd8 {[%clk 0:03:46]} 26. d7 {[%clk 0:03:36]} 26... Bf6
{[%clk 0:03:44.1]} 27. Qd6 {[%clk 0:03:33.5]} 27... Qb5 {[%clk 0:03:30.3]} 28.
g5 {[%clk 0:03:19.9]} 28... Bxg5 {[%clk 0:03:26.1]} 29. Qxe5 {[%clk 0:03:18.9]}
29... Bf6 {[%clk 0:03:20.7]} 30. Qe8+ {[%clk 0:03:01.3]} 30... Rxe8 {[%clk
0:03:17.8]} 31. dxe8=Q+ {[%clk 0:03:00.6]} 31... Qxe8 {[%clk 0:03:17]} 32. Rhe1
{[%clk 0:02:56.5]} 32... Qb5 {[%clk 0:03:14.7]} 33. b3 {[%clk 0:02:49.9]} 33...
Qa5 {[%clk 0:03:12.5]} 34. Re8+ {[%clk 0:02:42.7]} 34... Kh7 {[%clk 0:03:11.3]}
35. Rd3 {[%clk 0:02:41.6]} 35... Qa3 {[%clk 0:03:03.8]} 36. c3 {[%clk
0:02:39.8]} 36... Qa6 {[%clk 0:02:53.4]} 37. c4 {[%clk 0:02:32.2]} 37... Qa3
{[%clk 0:02:50.4]} 38. Re2 {[%clk 0:02:30.3]} 38... Qa8 {[%clk 0:02:47]} 39. a4
{[%clk 0:02:27.7]} 39... Qb8 {[%clk 0:02:41]} 40. Ka2 {[%clk 0:02:23.8]} 40...
Bd4 {[%clk 0:02:35.6]} 41. Kb1 {[%clk 0:01:45.8]} 41... Qg3 {[%clk 0:02:29.6]}
42. Red2 {[%clk 0:01:41.7]} 42... h3 {[%clk 0:02:26.1]} 43. f4 {[%clk
0:01:37.9]} 43... Qxf4 {[%clk 0:01:43]} 44. Rxh3+ {[%clk 0:01:35.3]} 44... Kg8
{[%clk 0:01:42.9]} 45. Rhd3 {[%clk 0:01:29.9]} 45... g6 {[%clk 0:01:41.7]} 46.
a5 {[%clk 0:01:28.4]} 46... Qc7 {[%clk 0:01:38.4]} 47. b4 {[%clk 0:01:27.8]}
47... Bf6 {[%clk 0:01:25.7]} 48. Rd7 {[%clk 0:01:26.3]} 48... Qe5 {[%clk
0:01:18]} 49. b5 {[%clk 0:01:17.9]} 49... Qa1+ {[%clk 0:01:15.3]} 50. Kc2 {[%clk
0:01:17.4]} 50... Qxa5 {[%clk 0:01:05.8]} 51. R2d3 {[%clk 0:01:08.7]} 51... Kg7
{[%clk 0:01:02.6]} 52. R7d6 {[%clk 0:01:01.4]} 52... Qa2+ {[%clk 0:01:01.4]} 53.
Kd1 {[%clk 0:00:59.9]} 53... Qxc4 {[%clk 0:00:58.8]} 54. b6 {[%clk 0:00:59.2]}
54... Qb5 {[%clk 0:00:55.6]} 55. Kc2 {[%clk 0:00:53.5]} 55... c4 {[%clk
0:00:53.3]} 56. R3d5 {[%clk 0:00:48.9]} 56... Qb3+ {[%clk 0:00:51.5]} 57. Kd2
{[%clk 0:00:44.4]} 57... c3+ {[%clk 0:00:49.8]} 58. Ke2 {[%clk 0:00:43.5]} 58...
c2 {[%clk 0:00:48.8]} 59. Rc5 {[%clk 0:00:42]} 59... Qb1 {[%clk 0:00:47.2]} 60.
Rdc6 {[%clk 0:00:40.7]} 60... Bg5 {[%clk 0:00:34]} 61. Rxc2 {[%clk 0:00:37.3]}
61... Qb5+ {[%clk 0:00:30.6]} 62. Kf3 {[%clk 0:00:36]} 62... Bd8 {[%clk
0:00:28.7]} 63. R2c5 {[%clk 0:00:34.5]} 63... Qb3+ {[%clk 0:00:26.2]} 64. Rc3
{[%clk 0:00:33.5]} 64... Qb5 {[%clk 0:00:25.5]} 65. R3c5 {[%clk 0:00:31.7]}
65... Qa6 {[%clk 0:00:17.4]} 66. Rd6 {[%clk 0:00:19.6]} 66... Bxb6 {[%clk
0:00:16.1]} 67. Rcc6 {[%clk 0:00:19.3]} 67... Qa8 {[%clk 0:00:15.5]} 68. Kg4
{[%clk 0:00:17.8]} 68... Bd4 {[%clk 0:00:13.7]} 69. Kg3 {[%clk 0:00:17.7]} 69...
Bf6 {[%clk 0:00:13]} 70. Rxf6 {[%clk 0:00:16.3]} 70... Qb8+ {[%clk 0:00:12.3]}
71. Rfd6 {[%clk 0:00:15.4]} 71... Kf8 {[%clk 0:00:10.5]} 72. Kf2 {[%clk
0:00:15.3]} 72... Ke7 {[%clk 0:00:10]} 73. Rf6 {[%clk 0:00:13.2]} 73... Qb2+
{[%clk 0:00:09]} 74. Kg3 {[%clk 0:00:12]} 74... Qxf6 {[%clk 0:00:08.9]} 75. Rc7+
{[%clk 0:00:11.4]} 75... Ke6 {[%clk 0:00:08.1]} 76. Ra7 {[%clk 0:00:11.3]} 76...
Kf5 {[%clk 0:00:08]} 77. Ra6 {[%clk 0:00:10.9]} 77... Qxa6 {[%clk 0:00:07]} 78.
Kf2 {[%clk 0:00:10.4]} 78... Qc4 {[%clk 0:00:06.9]} 79. Ke3 {[%clk 0:00:10.3]}
79... Ke5 {[%clk 0:00:06.4]} 80. Kd2 {[%clk 0:00:10.2]} 80... g5 {[%clk
0:00:05.8]} 81. Ke3 {[%clk 0:00:09]} 81... Qf4+ {[%clk 0:00:05.5]} 82. Kd3
{[%clk 0:00:07.1]} 82... g4 {[%clk 0:00:05.4]} 83. Kc2 {[%clk 0:00:06.9]} 83...
g3 {[%clk 0:00:05.3]} 84. Kb3 {[%clk 0:00:06.7]} 84... g2 {[%clk 0:00:05.2]} 85.
Kc3 {[%clk 0:00:06]} 85... g1=Q {[%clk 0:00:04.9]} 86. Kb3 {[%clk 0:00:05.9]}
86... Qgg3+ {[%clk 0:00:04.6]} 87. Kc2 {[%clk 0:00:05.3]} 87... Qff2+ {[%clk
0:00:04.5]} 88. Kc1 {[%clk 0:00:04.7]} 88... Qgg1# {[%clk 0:00:04.4]} 0-1

[Event "Live Chess"]
[Site "Chess.com"]
[Date "2024.06.02"]
[Round "-"]
[White "resipsa6"]
[Black "halfberg"]
[Result "0-1"]
[WhiteElo "2014"]
[BlackElo "1916"]
[TimeControl "300"]
[EndTime "7:24:17 PDT"]
[Termination "halfberg won by checkmate"]

1. e4 {[%clk 0:04:59.5]} 1... c5 {[%clk 0:04:58.1]} 2. Nf3 {[%clk 0:04:58.5]}
2... Nc6 {[%clk 0:04:56.5]} 3. d4 {[%clk 0:04:56.8]} 3... cxd4 {[%clk
0:04:55.4]} 4. Nxd4 {[%clk 0:04:55.9]} 4... Nf6 {[%clk 0:04:54.4]} 5. Nc3 {[%clk
0:04:54.9]} 5... e5 {[%clk 0:04:53.1]} 6. Nxc6 {[%clk 0:04:53.4]} 6... bxc6
{[%clk 0:04:51.4]} 7. Bg5 {[%clk 0:04:52.3]} 7... Be7 {[%clk 0:04:49.1]} 8. f3
{[%clk 0:04:51.5]} 8... O-O {[%clk 0:04:47.4]} 9. h4 {[%clk 0:04:50.3]} 9... h6
{[%clk 0:04:45.7]} 10. Be3 {[%clk 0:04:48.5]} 10... d5 {[%clk 0:04:43]} 11. exd5
{[%clk 0:04:44.7]} 11... cxd5 {[%clk 0:04:41.5]} 12. Bf2 {[%clk 0:04:43.1]}
12... d4 {[%clk 0:04:35.3]} 13. Ne4 {[%clk 0:04:41.8]} 13... Nxe4 {[%clk
0:04:31.9]} 14. fxe4 {[%clk 0:04:41.7]} 14... Bb4+ {[%clk 0:04:12.7]} 15. Ke2
{[%clk 0:04:34.6]} 15... Ba6+ {[%clk 0:04:01.3]} 16. Kf3 {[%clk 0:04:33.3]}
16... Qf6+ {[%clk 0:03:52.2]} 17. Kg3 {[%clk 0:04:31.1]} 17... Qf4+ {[%clk
0:03:50.7]} 18. Kh3 {[%clk 0:04:30.1]} 18... Qxf2 {[%clk 0:03:40.9]} 19. Bxa6
{[%clk 0:04:27.7]} 19... Be7 {[%clk 0:03:32.6]} 20. g3 {[%clk 0:04:20.8]} 20...
Qf6 {[%clk 0:03:16.1]} 21. Qg4 {[%clk 0:04:13.5]} 21... Qxa6 {[%clk 0:03:11.6]}
22. Raf1 {[%clk 0:04:10.7]} 22... Qe6 {[%clk 0:03:06.9]} 23. Qxe6 {[%clk
0:04:09.7]} 23... fxe6 {[%clk 0:03:05.6]} 24. g4 {[%clk 0:04:08.1]} 24... Rf4
{[%clk 0:03:03.2]} 25. Rxf4 {[%clk 0:04:06.8]} 25... exf4 {[%clk 0:03:01.9]} 26.
Rf1 {[%clk 0:04:06.7]} 26... e5 {[%clk 0:03:00.7]} 27. g5 {[%clk 0:04:06.6]}
27... hxg5 {[%clk 0:02:58.9]} 28. hxg5 {[%clk 0:04:06.5]} 28... Bxg5 {[%clk
0:02:57.7]} 29. a4 {[%clk 0:04:06.4]} 29... Rc8 {[%clk 0:02:53.2]} 30. b4 {[%clk
0:04:06.3]} 30... Rxc2 {[%clk 0:02:50.5]} 31. b5 {[%clk 0:04:05.4]} 31... Ra2
{[%clk 0:02:48.3]} 32. a5 {[%clk 0:04:05]} 32... Rxa5 {[%clk 0:02:46.6]} 33. b6
{[%clk 0:04:04.9]} 33... axb6 {[%clk 0:02:45.4]} 34. Rb1 {[%clk 0:04:04.8]}
34... b5 {[%clk 0:02:34.5]} 35. Kg4 {[%clk 0:04:04.7]} 35... Bf6 {[%clk
0:02:28.6]} 36. Kh5 {[%clk 0:04:04]} 36... Kf7 {[%clk 0:02:23.8]} 37. Rb3 {[%clk
0:04:02.6]} 37... g6+ {[%clk 0:02:11]} 38. Kg4 {[%clk 0:04:00.6]} 38... Be7
{[%clk 0:02:08.6]} 39. Ra3 {[%clk 0:03:58.7]} 39... Ra4 {[%clk 0:02:00.1]} 40.
Rb3 {[%clk 0:03:58.6]} 40... b4 {[%clk 0:01:50.8]} 41. Rb2 {[%clk 0:03:57]}
41... Ke6 {[%clk 0:01:45.9]} 42. Rc2 {[%clk 0:03:50.8]} 42... Bd6 {[%clk
0:01:41.9]} 43. Rc8 {[%clk 0:03:46.6]} 43... Ra3 {[%clk 0:01:36.7]} 44. Re8+
{[%clk 0:03:45.3]} 44... Be7 {[%clk 0:01:34.2]} 45. Rb8 {[%clk 0:03:39.7]} 45...
Rg3# {[%clk 0:01:31.6]} 0-1

[Event "Live Chess"]
[Site "Chess.com"]
[Date "2024.06.02"]
[Round "-"]
[White "ivan_1968"]
[Black "jimwad"]
[Result "1-0"]
[WhiteElo "1817"]
[BlackElo "1332"]
[TimeControl "300"]
[EndTime "7:24:24 PDT"]
[Termination "ivan_1968 won on time"]

1. e4 {[%clk 0:04:55.8]} 1... e5 {[%clk 0:04:58.7]} 2. Nf3 {[%clk 0:04:54.2]}
2... Nc6 {[%clk 0:04:57]} 3. Bc4 {[%clk 0:04:52.4]} 3... Bc5 {[%clk 0:04:54.7]}
4. b4 {[%clk 0:04:49.6]} 4... Bxb4 {[%clk 0:04:50.1]} 5. c3 {[%clk 0:04:48.4]}
5... Bc5 {[%clk 0:04:49]} 6. d4 {[%clk 0:04:46.6]} 6... exd4 {[%clk 0:04:47.9]}
7. O-O {[%clk 0:04:45.5]} 7... dxc3 {[%clk 0:04:46.2]} 8. Bxf7+ {[%clk
0:04:42.2]} 8... Kf8 {[%clk 0:04:45.1]} 9. Bc4 {[%clk 0:04:08]} 9... d6 {[%clk
0:04:24.2]} 10. Nxc3 {[%clk 0:04:04.4]} 10... Nf6 {[%clk 0:04:22.2]} 11. Bg5
{[%clk 0:03:56]} 11... h6 {[%clk 0:04:18.3]} 12. Bh4 {[%clk 0:03:41]} 12... g5
{[%clk 0:04:17.1]} 13. Bg3 {[%clk 0:03:39.6]} 13... Kg7 {[%clk 0:04:15.2]} 14.
Re1 {[%clk 0:03:32.5]} 14... Rf8 {[%clk 0:04:02.7]} 15. e5 {[%clk 0:03:19.1]}
15... dxe5 {[%clk 0:04:00.7]} 16. Qxd8 {[%clk 0:03:11.7]} 16... Rxd8 {[%clk
0:03:56.3]} 17. Nxe5 {[%clk 0:03:09.6]} 17... Nxe5 {[%clk 0:03:55]} 18. Bxe5
{[%clk 0:03:04.8]} 18... Bf5 {[%clk 0:03:42.3]} 19. Nd5 {[%clk 0:02:59.2]} 19...
Rf8 {[%clk 0:03:34.7]} 20. Nxf6 {[%clk 0:02:55.8]} 20... Rxf6 {[%clk 0:03:33]}
21. Rad1 {[%clk 0:02:47.8]} 21... Bc2 {[%clk 0:03:15]} 22. Bxf6+ {[%clk
0:02:45]} 22... Kxf6 {[%clk 0:03:13.3]} 23. Re6+ {[%clk 0:02:41]} 23... Kf5
{[%clk 0:03:03.3]} 24. Rd5+ {[%clk 0:02:39]} 24... Kxe6 {[%clk 0:03:00.9]} 25.
Rxc5+ {[%clk 0:02:36.6]} 25... Kd6 {[%clk 0:02:59]} 26. Rd5+ {[%clk 0:02:34.9]}
26... Kc6 {[%clk 0:02:56.6]} 27. Re5 {[%clk 0:02:29.1]} 27... Rd8 {[%clk
0:02:51.4]} 28. f3 {[%clk 0:02:27.8]} 28... Bd3 {[%clk 0:02:31.9]} 29. Bb3
{[%clk 0:02:23.5]} 29... Rd6 {[%clk 0:02:28.2]} 30. Kf2 {[%clk 0:02:22.9]} 30...
Bh7 {[%clk 0:02:15.1]} 31. g3 {[%clk 0:02:18.4]} 31... Bg6 {[%clk 0:02:11.2]}
32. Ke3 {[%clk 0:02:15.6]} 32... Rd3+ {[%clk 0:02:02.4]} 33. Ke2 {[%clk
0:02:12.9]} 33... Rd6 {[%clk 0:01:58.3]} 34. f4 {[%clk 0:02:11.2]} 34... gxf4
{[%clk 0:01:57]} 35. gxf4 {[%clk 0:02:09.9]} 35... Rf6 {[%clk 0:01:53.5]} 36.
Ke3 {[%clk 0:02:08]} 36... Rd6 {[%clk 0:01:43.5]} 37. f5 {[%clk 0:02:05.1]}
37... Bh5 {[%clk 0:01:37.5]} 38. f6 {[%clk 0:01:58.3]} 38... Rxf6 {[%clk
0:01:35.5]} 39. Rxh5 {[%clk 0:01:56.5]} 39... Rg6 {[%clk 0:01:27.6]} 40. Bd5+
{[%clk 0:01:50.7]} 40... Kb6 {[%clk 0:01:26.1]} 41. Be4 {[%clk 0:01:49.1]} 41...
Re6 {[%clk 0:01:21.4]} 42. Kf4 {[%clk 0:01:46.1]} 42... c5 {[%clk 0:01:17.8]}
43. h4 {[%clk 0:01:39.9]} 43... Rf6+ {[%clk 0:01:13.1]} 44. Rf5 {[%clk
0:01:35.8]} 44... Rd6 {[%clk 0:01:07.1]} 45. h5 {[%clk 0:01:31.2]} 45... Rd4
{[%clk 0:01:05.4]} 46. Rd5 {[%clk 0:01:29.5]} 46... Rxd5 {[%clk 0:01:02.8]} 47.
Bxd5 {[%clk 0:01:28.2]} 47... Kc7 {[%clk 0:01:00.6]} 48. Kf5 {[%clk 0:01:27.6]}
48... b5 {[%clk 0:00:59.6]} 49. Kg6 {[%clk 0:01:25.9]} 49... c4 {[%clk
0:00:58.8]} 50. Kxh6 {[%clk 0:01:23.9]} 50... c3 {[%clk 0:00:58]} 51. Bb3 {[%clk
0:01:21.7]} 51... a5 {[%clk 0:00:55.9]} 52. Kg7 {[%clk 0:01:19.1]} 52... a4
{[%clk 0:00:55.1]} 53. Bc2 {[%clk 0:01:17.2]} 53... b4 {[%clk 0:00:54]} 54. h6
{[%clk 0:01:15.9]} 54... b3 {[%clk 0:00:52.9]} 55. axb3 {[%clk 0:01:14.3]} 55...
a3 {[%clk 0:00:51.3]} 56. h7 {[%clk 0:01:00.3]} 56... a2 {[%clk 0:00:49.6]} 57.
h8=Q {[%clk 0:00:59.1]} 57... a1=Q {[%clk 0:00:47.7]} 58. Qh2+ {[%clk
0:00:57.6]} 58... Kc6 {[%clk 0:00:41.8]} 59. Qg2+ {[%clk 0:00:53.8]} 59... Kc5
{[%clk 0:00:37.8]} 60. Qf2+ {[%clk 0:00:51.8]} 60... Kd5 {[%clk 0:00:36.8]} 61.
Qf3+ {[%clk 0:00:49.9]} 61... Ke5 {[%clk 0:00:35.4]} 62. Qe3+ {[%clk 0:00:47.7]}
62... Kd5 {[%clk 0:00:33.2]} 63. Qe4+ {[%clk 0:00:43.5]} 63... Kd6 {[%clk
0:00:30.7]} 64. Qd4+ {[%clk 0:00:34.8]} 64... Kc6 {[%clk 0:00:27]} 65. Kf6
{[%clk 0:00:32.1]} 65... Qf1+ {[%clk 0:00:24]} 66. Ke5 {[%clk 0:00:30.8]} 66...
Qe1+ {[%clk 0:00:19.4]} 67. Qe4+ {[%clk 0:00:29]} 67... Qxe4+ {[%clk 0:00:18]}
68. Kxe4 {[%clk 0:00:28.6]} 68... Kc5 {[%clk 0:00:16.8]} 69. Kd3 {[%clk
0:00:27.5]} 69... Kb4 {[%clk 0:00:16.1]} 70. Bd1 {[%clk 0:00:26.5]} 70... c2
{[%clk 0:00:10.8]} 71. Bxc2 {[%clk 0:00:25.6]} 71... Kc5 {[%clk 0:00:09.1]} 72.
Kc3 {[%clk 0:00:24.3]} 72... Kb5 {[%clk 0:00:08.3]} 73. b4 {[%clk 0:00:24.2]}
73... Kb6 {[%clk 0:00:07.1]} 74. Kc4 {[%clk 0:00:23.5]} 74... Kc6 {[%clk
0:00:05.9]} 75. b5+ {[%clk 0:00:22.7]} 75... Kb6 {[%clk 0:00:04.7]} 76. Kb4
{[%clk 0:00:22.1]} 76... Kb7 {[%clk 0:00:02.9]} 77. Kc5 {[%clk 0:00:21]} 77...
Kc7 {[%clk 0:00:02]} 78. b6+ {[%clk 0:00:19.7]} 78... Kb7 {[%clk 0:00:01.3]} 79.
Be4+ {[%clk 0:00:19.3]} 1-0

[Event "Live Chess"]
[Site "Chess.com"]
[Date "2024.06.02"]
[Round "-"]
[White "gmnorfolk"]
[Black "TheSmoulderingMaster"]
[Result "1-0"]
[WhiteElo "2159"]
[BlackElo "1770"]
[TimeControl "300"]
[EndTime "7:24:25 PDT"]
[Termination "gmnorfolk won by resignation"]

1. c4 {[%clk 0:04:56.7]} 1... e5 {[%clk 0:04:58.4]} 2. Nc3 {[%clk 0:04:55.2]}
2... Nc6 {[%clk 0:04:57.1]} 3. Nf3 {[%clk 0:04:54.7]} 3... Nf6 {[%clk
0:04:55.7]} 4. g3 {[%clk 0:04:54.3]} 4... Bc5 {[%clk 0:04:54.4]} 5. Bg2 {[%clk
0:04:53.6]} 5... O-O {[%clk 0:04:52.1]} 6. O-O {[%clk 0:04:53.1]} 6... d6 {[%clk
0:04:51]} 7. e3 {[%clk 0:04:50.8]} 7... Bg4 {[%clk 0:04:49.7]} 8. h3 {[%clk
0:04:49.1]} 8... Be6 {[%clk 0:04:48]} 9. d3 {[%clk 0:04:45.8]} 9... Qd7 {[%clk
0:04:45.4]} 10. Kh2 {[%clk 0:04:44.5]} 10... Bb6 {[%clk 0:04:41.7]} 11. a3
{[%clk 0:04:42.1]} 11... d5 {[%clk 0:04:37.5]} 12. b3 {[%clk 0:04:36.8]} 12...
d4 {[%clk 0:04:32.5]} 13. exd4 {[%clk 0:04:35.7]} 13... exd4 {[%clk 0:04:30.8]}
14. Na4 {[%clk 0:04:26.6]} 14... Rfe8 {[%clk 0:04:27.2]} 15. b4 {[%clk
0:04:25.5]} 15... a5 {[%clk 0:04:19.9]} 16. Nxb6 {[%clk 0:04:23]} 16... cxb6
{[%clk 0:04:18.8]} 17. b5 {[%clk 0:04:22.2]} 17... Ne7 {[%clk 0:04:16.4]} 18.
Bb2 {[%clk 0:04:19.6]} 18... Nf5 {[%clk 0:04:10.4]} 19. g4 {[%clk 0:04:17.1]}
19... Qc7+ {[%clk 0:04:03.6]} 20. Kg1 {[%clk 0:04:07.2]} 20... Nh6 {[%clk
0:04:00.1]} 21. g5 {[%clk 0:04:03.8]} 21... Nh5 {[%clk 0:03:56.9]} 22. gxh6
{[%clk 0:03:59.2]} 22... gxh6 {[%clk 0:03:56.4]} 23. Nxd4 {[%clk 0:03:56.3]}
23... Kh8 {[%clk 0:03:46.4]} 24. Nxe6+ {[%clk 0:03:51.8]} 1-0

[Event "Live Chess"]
[Site "Chess.com"]
[Date "2024.06.02"]
[Round "-"]
[White "McCarthyStone"]
[Black "lateforthesky"]
[Result "1-0"]
[WhiteElo "2457"]
[BlackElo "2066"]
[TimeControl "300"]
[EndTime "7:24:28 PDT"]
[Termination "McCarthyStone won by resignation"]

1. b3 {[%clk 0:04:59]} 1... Nf6 {[%clk 0:04:52.3]} 2. Bb2 {[%clk 0:04:58.9]}
2... g6 {[%clk 0:04:51]} 3. Bxf6 {[%clk 0:04:57.5]} 3... exf6 {[%clk 0:04:49.5]}
4. c4 {[%clk 0:04:57.4]} 4... f5 {[%clk 0:04:48.6]} 5. Nc3 {[%clk 0:04:57.1]}
5... Bg7 {[%clk 0:04:47.7]} 6. g3 {[%clk 0:04:56.8]} 6... O-O {[%clk 0:04:46.2]}
7. Bg2 {[%clk 0:04:56.6]} 7... c6 {[%clk 0:04:45.2]} 8. e3 {[%clk 0:04:56.3]}
8... d6 {[%clk 0:04:44.2]} 9. Nge2 {[%clk 0:04:56]} 9... Re8 {[%clk 0:04:42.2]}
10. O-O {[%clk 0:04:55.7]} 10... Nd7 {[%clk 0:04:41.3]} 11. Rc1 {[%clk
0:04:55.2]} 11... Nf6 {[%clk 0:04:40.1]} 12. h4 {[%clk 0:04:54]} 12... Ne4
{[%clk 0:04:29.3]} 13. d3 {[%clk 0:04:52.6]} 13... Nxc3 {[%clk 0:04:27.1]} 14.
Nxc3 {[%clk 0:04:52.5]} 14... Be6 {[%clk 0:04:22.9]} 15. d4 {[%clk 0:04:51]}
15... d5 {[%clk 0:04:18.4]} 16. cxd5 {[%clk 0:04:50.9]} 16... Bxd5 {[%clk
0:04:17.1]} 17. Nxd5 {[%clk 0:04:45.6]} 17... cxd5 {[%clk 0:04:16.2]} 18. Rc5
{[%clk 0:04:42.2]} 18... Qb6 {[%clk 0:03:51]} 19. Bxd5 {[%clk 0:04:37]} 19...
Rac8 {[%clk 0:03:47.3]} 20. Qc2 {[%clk 0:04:31.6]} 20... Rxc5 {[%clk 0:03:43.5]}
21. Qxc5 {[%clk 0:04:31.5]} 21... Qxc5 {[%clk 0:03:38.2]} 22. dxc5 {[%clk
0:04:31.4]} 22... Re7 {[%clk 0:03:36]} 23. Rc1 {[%clk 0:04:23]} 23... Bf8 {[%clk
0:03:33]} 24. Kf1 {[%clk 0:04:12.5]} 24... Rc7 {[%clk 0:03:30.8]} 25. b4 {[%clk
0:04:09.3]} 25... Kg7 {[%clk 0:03:24.8]} 26. a3 {[%clk 0:04:01.1]} 26... Kf6
{[%clk 0:03:22.9]} 27. Ke2 {[%clk 0:03:59.6]} 27... Ke5 {[%clk 0:03:21.1]} 28.
Bf3 {[%clk 0:03:58.5]} 28... f6 {[%clk 0:03:17.7]} 29. Rd1 {[%clk 0:03:57]}
29... Be7 {[%clk 0:03:12.9]} 30. Rd4 {[%clk 0:03:38]} 30... g5 {[%clk
0:02:57.3]} 31. Kd3 {[%clk 0:03:34]} 31... h6 {[%clk 0:02:48.5]} 32. Kc4 {[%clk
0:03:32.5]} 32... a6 {[%clk 0:02:28.9]} 33. Bd5 {[%clk 0:03:31.5]} 33... f4
{[%clk 0:02:12.9]} 34. exf4+ {[%clk 0:03:30]} 34... gxf4 {[%clk 0:02:11.5]} 35.
Re4+ {[%clk 0:03:09.5]} 35... Kf5 {[%clk 0:02:07.9]} 36. Rxf4+ {[%clk
0:03:08.8]} 36... Ke5 {[%clk 0:02:03.6]} 37. Re4+ {[%clk 0:02:56.8]} 37... Kf5
{[%clk 0:02:02.4]} 38. h5 {[%clk 0:02:48.4]} 38... Kg5 {[%clk 0:01:58.2]} 39. f3
{[%clk 0:01:57.4]} 39... f5 {[%clk 0:01:55.3]} 40. Re5 {[%clk 0:01:47.8]} 40...
Bf6 {[%clk 0:01:47.9]} 41. Re6 {[%clk 0:01:42.3]} 41... Bb2 {[%clk 0:01:45.7]}
42. Rb6 {[%clk 0:01:31.1]} 42... Bxa3 {[%clk 0:01:40.3]} 43. f4+ {[%clk
0:01:10.7]} 43... Kg4 {[%clk 0:01:37.3]} 44. Rxb7 {[%clk 0:01:00.9]} 1-0

[Event "Live Chess"]
[Site "Chess.com"]
[Date "2024.06.02"]
[Round "-"]
[White "Anareza_Firouzja"]
[Black "WorcesterYork"]
[Result "0-1"]
[WhiteElo "1885"]
[BlackElo "2452"]
[TimeControl "300"]
[EndTime "7:24:42 PDT"]
[Termination "WorcesterYork won by resignation"]

1. e4 {[%clk 0:04:58.1]} 1... c5 {[%clk 0:04:59.6]} 2. Nf3 {[%clk 0:04:55.9]}
2... Nc6 {[%clk 0:04:59.5]} 3. Bb5 {[%clk 0:04:53.8]} 3... d6 {[%clk 0:04:58.8]}
4. Bxc6+ {[%clk 0:04:52.2]} 4... bxc6 {[%clk 0:04:56.1]} 5. h3 {[%clk
0:04:50.9]} 5... e5 {[%clk 0:04:52.4]} 6. O-O {[%clk 0:04:48.5]} 6... f5 {[%clk
0:04:51.6]} 7. d3 {[%clk 0:04:46.1]} 7... Nf6 {[%clk 0:04:49.5]} 8. Nc3 {[%clk
0:04:43.4]} 8... f4 {[%clk 0:04:47.7]} 9. Ne2 {[%clk 0:04:37.7]} 9... Be7 {[%clk
0:04:46.6]} 10. c3 {[%clk 0:04:36.8]} 10... g5 {[%clk 0:04:43.1]} 11. d4 {[%clk
0:04:35.9]} 11... g4 {[%clk 0:04:37.8]} 12. hxg4 {[%clk 0:04:33.9]} 12... Bxg4
{[%clk 0:04:37.7]} 13. dxe5 {[%clk 0:04:32.4]} 13... Bxf3 {[%clk 0:04:35.3]} 14.
exf6 {[%clk 0:04:26.9]} 14... Bxf6 {[%clk 0:04:29.1]} 15. gxf3 {[%clk
0:04:17.2]} 15... Rg8+ {[%clk 0:04:27.8]} 16. Kh1 {[%clk 0:04:12.8]} 16... Be5
{[%clk 0:04:26.5]} 17. Ng3 {[%clk 0:03:48.4]} 17... Qh4+ {[%clk 0:04:23.1]} 18.
Kg2 {[%clk 0:03:47.1]} 18... fxg3 {[%clk 0:04:20.9]} 19. f4 {[%clk 0:03:28.5]}
19... gxf2+ {[%clk 0:03:47.6]} 20. Kf3 {[%clk 0:03:25.7]} 20... Qh5+ {[%clk
0:03:38.6]} 21. Kxf2 {[%clk 0:03:20.2]} 21... Qh2+ {[%clk 0:03:37.5]} 22. Ke1
{[%clk 0:03:07.8]} 22... Qg3+ {[%clk 0:03:33.2]} 23. Rf2 {[%clk 0:02:51.5]}
23... Bf6 {[%clk 0:03:04.2]} 24. Qh5+ {[%clk 0:02:49.5]} 24... Ke7 {[%clk
0:02:58]} 25. Qxh7+ {[%clk 0:02:42.8]} 25... Rg7 {[%clk 0:02:56.5]} 26. Qh2
{[%clk 0:02:42.2]} 26... Bh4 {[%clk 0:02:54.5]} 27. Qxg3 {[%clk 0:02:19.4]}
27... Bxg3 {[%clk 0:02:54.4]} 28. Be3 {[%clk 0:02:18.5]} 28... Bxf2+ {[%clk
0:02:41.3]} 29. Kxf2 {[%clk 0:02:15]} 29... Rh8 {[%clk 0:02:40.5]} 0-1